bitfinex/quotes_SOLUSD_20240712
["timestamp","ask_amount","ask_price","bid_price","bid_amount"]
[1720811305232,45.0,140.01,139.93,15.31]
[1720811305429,15.31,139.98,139.93,15.31]
[1720811305609,22.4536,139.99,139.94,15.31]
[1720811306130,15.31,139.99,139.94,15.31]
[1720811306612,15.31,140.0,139.95,15.31]
[1720811307117,22.4529,140.0,139.95,15.31]
[1720811307524,15.31,139.99,139.94,15.31]
[1720811307726,15.31,139.98,139.92,3.1911923]
[1720811307935,15.31,139.98,139.93,15.31]
[1720811308131,15.31,139.98,139.92,3.1911923]
[1720811308317,15.31,139.98,139.93,15.31]
[1720811308521,7.1434,139.99,139.93,15.31]
[1720811308725,15.31,139.98,139.93,15.31]
[1720811309034,22.4534,139.99,139.94,15.31]
[1720811309807,15.31,139.98,139.93,15.31]
[1720811310345,22.454,139.98,139.92,3.1911923]
[1720811310520,22.4544,139.97,139.92,18.5011923]
[1720811310839,15.31,139.96,139.92,3.1911923]
[1720811311312,15.31,139.96,139.91,31.626]
[1720811311852,15.31,139.95,139.91,16.316]
[1720811312134,15.31,139.95,139.91,15.816]
[1720811312633,15.31,139.95,139.9,1.26620826]
[1720811313025,15.31,139.94,139.9,1.26620826]
[1720811313522,15.31,139.95,139.9,16.57620826]
[1720811315514,15.31,139.95,139.9,1.26620826]
[1720811315731,15.31,139.94,139.9,1.26620826]
[1720811316241,15.31,139.93,139.9,1.26620826]
[1720811316617,15.31,139.94,139.9,1.26620826]
[1720811317334,15.31,139.93,139.9,1.26620826]
[1720811317813,7.1449,139.96,139.9,1.26620826]
[1720811318013,15.31,139.94,139.9,1.26620826]
[1720811318420,45.0,139.95,139.9,1.26620826]
[1720811318618,15.9909,139.98,139.92,15.31]
[1720811318812,15.31,139.97,139.92,15.31]
[1720811319017,16.51473091,140.0,139.92,15.31]
[1720811319368,15.31,139.99,139.93,15.31]
[1720811319837,15.31,139.98,139.93,15.31]
[1720811320034,7.1433,139.99,139.93,15.31]
[1720811320238,15.31,139.98,139.93,15.31]
[1720811320428,15.31,139.99,139.94,15.31]
[1720811320937,15.31,139.99,139.95,15.31]
[1720811321929,15.31,140.0,139.95,15.31]
[1720811322125,23.39867069,140.02,139.95,15.31]
[1720811322330,14.56487069,140.02,139.96,15.31]
[1720811322519,60.31,140.01,139.96,15.31]
[1720811322719,67.4524,140.01,139.96,15.31]
[1720811322934,7.1424,140.01,139.96,15.31]
[1720811323139,22.4524,140.01,139.96,15.31]
[1720811323341,15.31,140.01,139.96,15.31]
[1720811323834,7.1423,140.01,139.95,15.31]
[1720811324143,22.452,140.02,139.96,15.31]
[1720811325042,31.07616312,140.04,139.96,15.31]
[1720811325043,22.4523,140.01,139.96,15.31]
[1720811326024,15.31,140.01,139.96,15.31]
[1720811326945,22.4523,140.01,139.96,15.31]
[1720811327145,33.88926435,140.04,139.94,15.9824]
[1720811327350,15.31,140.0,139.95,15.31]
[1720811328236,22.4528,140.0,139.95,15.31]
[1720811328647,15.31,140.0,139.95,15.31]
[1720811329431,22.4529,140.0,139.95,15.31]
[1720811329640,15.31,139.99,139.94,31.2924]
[1720811329835,15.31,140.0,139.95,15.31]
[1720811330525,15.31,139.99,139.94,31.2924]
[1720811330952,22.4533,140.0,139.94,31.2924]
[1720811331144,15.31,140.0,139.94,31.2924]
[1720811331834,15.31,140.0,139.95,15.31]
[1720811332441,22.4529,140.0,139.94,31.2924]
[1720811332834,15.31,139.99,139.94,31.2924]
[1720811334363,15.31,140.0,139.94,31.2924]
[1720811335652,15.31,139.99,139.94,31.2924]
[1720811335824,15.31,140.0,139.94,31.2924]
[1720811336451,15.31,140.04,139.94,15.9824]
[1720811336625,15.31,140.04,139.99,15.31]
[1720811336830,15.31,140.04,140.0,1.21257088]
[1720811337339,15.31,140.04,139.99,15.31]
[1720811337666,22.4508,140.04,139.99,15.31]
[1720811338177,7.1415,140.03,139.99,15.31]
[1720811338352,7.1415,140.03,139.98,15.31]
[1720811338858,22.4515,140.03,139.98,15.31]
[1720811340440,7.1419,140.02,139.98,15.31]
[1720811340941,7.1419,140.02,139.97,15.31]
[1720811341138,15.31,140.02,139.94,15.9824]
[1720811341343,67.4524,140.01,139.95,15.31]
[1720811341643,22.4524,140.01,139.96,15.31]
[1720811341965,22.452,140.02,139.97,15.31]
[1720811343454,22.4515,140.03,139.94,15.9824]
[1720811343632,22.4515,140.03,139.98,15.31]
[1720811345149,7.1418,140.02,139.97,15.31]
[1720811345352,15.31,140.02,139.94,15.9824]
[1720811345542,22.4526,140.01,139.96,15.31]
[1720811346050,15.31,140.01,139.96,15.31]
[1720811346749,22.4524,140.01,139.96,15.31]
[1720811348152,15.31,140.01,139.96,15.31]
[1720811348466,22.452,140.02,139.96,15.31]
[1720811349152,15.31,140.02,139.96,15.31]
[1720811349393,22.4515,140.03,139.98,15.31]
[1720811350434,15.31,139.99,139.91,15.3157]
[1720811350758,22.4546,139.97,139.92,15.31]
[1720811350970,15.31,139.97,139.92,15.31]
[1720811351146,15.31,139.97,139.91,15.3157]
[1720811351352,15.31,139.97,139.92,15.31]
[1720811351547,15.31,139.97,139.91,15.3157]
[1720811351854,15.31,139.96,139.91,15.3157]
[1720811352168,15.31,139.95,139.91,15.3157]
[1720811352852,15.31,139.95,139.9,1.26620826]
[1720811353338,15.31,139.95,139.9,16.57620826]
[1720811353762,30.0,139.96,139.9,16.57620826]
[1720811353950,45.31,139.96,139.9,16.57620826]
[1720811354450,30.0,139.96,139.9,16.57620826]
[1720811354652,30.0,139.96,139.91,14.81]
[1720811356246,30.0,139.96,139.9,16.57620826]
[1720811357462,7.144,139.98,139.9,16.57620826]
[1720811357761,45.0,139.97,139.9,16.57620826]
[1720811358844,15.31,139.94,139.9,1.26620826]
[1720811360463,15.31,139.93,139.9,1.26620826]
[1720811361046,15.31,139.94,139.9,1.26620826]
[1720811361259,15.31,139.95,139.9,16.57620826]
[1720811361461,15.31,139.94,139.9,1.26620826]
[1720811364164,15.31,139.93,139.9,1.26620826]
[1720811364762,15.31,139.94,139.9,1.26620826]
[1720811364968,15.31,139.93,139.9,1.26620826]
[1720811371373,15.31,139.94,139.9,1.26620826]
[1720811372566,7.4269555,139.97,139.9,1.26620826]
[1720811372770,15.31,139.97,139.92,15.31]
[1720811373072,15.31,139.95,139.9,16.57620826]
[1720811373551,14.57023254,139.98,139.91,15.31]
[1720811373752,15.31,139.96,139.91,15.31]
[1720811373956,15.31,139.95,139.9,16.57620826]
[1720811377276,15.31,139.96,139.91,15.31]
[1720811379599,32.01759695,140.0,139.92,15.31]
[1720811379907,25.30577748,140.04,139.96,15.31]
[1720811380086,15.31,140.01,139.96,15.31]
[1720811380259,15.31,140.02,139.97,15.31]
[1720811380459,7.1419,140.02,139.92,30.5676]
[1720811380654,22.4523,140.01,139.92,30.5676]
[1720811380889,15.31,140.0,139.93,3.19096425]
[1720811381068,15.31,139.99,139.94,15.31]
[1720811381262,15.31,140.0,139.94,15.31]
[1720811381580,7.1419,140.02,139.96,15.31]
[1720811381778,15.31,140.01,139.96,15.31]
[1720811383686,15.31,140.01,139.93,3.19096425]
[1720811383976,15.31,139.99,139.93,3.19096425]
[1720811384390,15.31,139.99,139.94,15.31]
[1720811384586,15.31,139.99,139.95,15.31]
[1720811384772,15.31,139.99,139.94,15.31]
[1720811384958,7.1428,140.0,139.93,3.19096425]
[1720811385164,15.31,139.98,139.93,3.19096425]
[1720811386166,15.31,139.98,139.92,30.5676]
[1720811387378,15.31,139.97,139.92,30.5676]
[1720811387889,15.31,139.97,139.92,15.2576]
[1720811388086,15.31,139.97,139.92,30.5676]
[1720811389087,15.31,139.97,139.92,15.2576]
[1720811389404,15.31,139.97,139.92,30.5676]
[1720811396199,15.31,139.96,139.92,15.2576]
[1720811400195,6.1019,139.99,139.9,1.26620826]
[1720811400402,15.31,139.94,139.9,1.26620826]
[1720811400600,15.31,139.95,139.9,16.57620826]
[1720811401305,15.31,139.95,139.9,1.26620826]
[1720811401604,15.31,139.96,139.91,15.31]
[1720811401793,15.31,139.97,139.91,15.31]
[1720811401995,15.31,139.97,139.92,16.73909473]
[1720811402788,7.38737217,140.0,139.9,1.26620826]
[1720811402991,6.5809,140.03,139.94,15.9428]
[1720811403191,6.5809,140.03,139.96,15.31]
[1720811403396,15.31,140.02,139.97,15.31]
[1720811403787,15.31,140.01,139.94,22.04]
[1720811403981,15.31,140.01,139.95,15.31]
[1720811404182,15.31,140.0,139.95,15.31]
[1720811404698,15.31,139.99,139.94,37.35]
[1720811405596,6.5809,140.03,139.94,15.9428]
[1720811405597,15.31,139.97,139.94,15.9428]
[1720811406098,15.31,139.97,139.92,15.31]
[1720811406703,15.31,139.98,139.93,15.31]
[1720811406915,15.31,139.99,139.94,15.31]
[1720811407081,15.31,140.0,139.94,15.31]
[1720811407286,15.31,140.01,139.96,15.31]
[1720811407687,15.31,140.0,139.95,15.31]
[1720811408004,15.31,140.0,139.94,15.31]
[1720811408194,15.31,139.99,139.94,15.31]
[1720811408396,15.31,139.98,139.91,18.87882039]
[1720811408600,15.31,139.98,139.92,15.31]
[1720811409000,15.31,139.98,139.91,18.87882039]
[1720811409202,15.31,139.98,139.92,15.31]
[1720811411114,15.31,139.97,139.92,15.31]
[1720811411692,15.31,140.0,139.91,18.87882039]
[1720811411893,15.31,139.95,139.91,18.87882039]
[1720811412493,15.31,139.96,139.91,34.18882039]
[1720811413411,15.31,139.97,139.92,15.31]
[1720811413624,15.31,139.98,139.93,15.31]
[1720811416113,22.5504,140.01,139.93,15.31]
[1720811416313,15.31,139.99,139.93,15.31]
[1720811416517,15.31,139.99,139.94,15.31]
[1720811417625,14.60105015,140.02,139.95,15.31]
[1720811417801,15.31,140.0,139.95,15.31]
[1720811418201,7.45925015,140.02,139.95,15.31]
[1720811418409,22.76925015,140.02,139.96,15.31]
[1720811418607,7.1408,140.04,139.98,15.31]
[1720811418824,15.31,140.03,139.99,1.42848579]
[1720811419405,15.31,140.03,139.98,15.31]
[1720811419596,15.31,140.02,139.98,15.31]
[1720811420001,15.31,140.02,139.97,15.31]
[1720811420417,15.31,140.02,139.96,15.31]
[1720811420700,15.31,140.0,139.93,16.1873]
[1720811420905,15.31,140.0,139.95,15.31]
[1720811421211,15.31,139.99,139.94,15.31]
[1720811421411,6.2756,140.02,139.93,16.1873]
[1720811421619,13.4177,140.02,139.95,15.31]
[1720811421812,15.31,140.0,139.95,15.31]
[1720811422622,7.1432,140.0,139.93,16.1873]
[1720811422809,15.31,139.98,139.93,16.1873]
[1720811423005,15.31,139.98,139.93,31.4973]
[1720811427021,15.31,139.97,139.93,16.1873]
[1720811429905,15.31,139.97,139.92,15.31]
[1720811430100,15.31,139.96,139.91,18.50142039]
[1720811431627,15.31,139.96,139.91,3.19142039]
[1720811431938,15.31,139.95,139.91,3.19142039]
[1720811434823,15.31,139.96,139.91,3.19142039]
[1720811435002,15.31,139.97,139.91,18.50142039]
[1720811435207,15.31,139.97,139.92,15.31]
[1720811437812,7.44739996,139.99,139.93,16.5454318]
[1720811438123,15.31,139.99,139.94,15.31]
[1720811439824,15.31,140.0,139.95,15.31]
[1720811442229,6.2756,140.02,139.92,6.5813]
[1720811442437,15.31,139.98,139.92,15.31]
[1720811442734,7.1438,139.99,139.92,15.31]
[1720811442735,15.31,139.97,139.92,15.31]
[1720811443934,15.31,139.98,139.92,15.31]
[1720811444833,45.0,140.01,139.94,15.31]
[1720811445136,15.31,139.99,139.94,15.31]
[1720811445637,15.31,139.98,139.93,15.31]
[1720811446838,15.31,139.98,139.92,15.31]
[1720811447240,7.143,140.0,139.93,15.31]
[1720811447537,15.31,139.98,139.93,15.31]
[1720811448844,7.143,140.0,139.93,15.31]
[1720811449024,15.31,139.98,139.93,15.31]
[1720811450121,15.31,139.99,139.93,15.31]
[1720811450322,15.31,139.99,139.91,3.19142039]
[1720811450518,15.31,139.99,139.93,15.31]
[1720811450942,15.31,139.98,139.91,3.19142039]
[1720811451144,15.31,139.98,139.93,15.31]
[1720811451847,15.31,139.98,139.92,15.31]
[1720811452438,15.31,139.98,139.91,3.19142039]
[1720811452640,15.31,139.98,139.93,15.31]
[1720811453224,15.31,139.99,139.93,15.31]
[1720811455129,6.2756,140.02,139.91,3.19142039]
[1720811455340,15.31,140.01,139.96,15.31]
[1720811455542,15.31,140.0,139.95,15.31]
[1720811458526,13.4174,140.02,139.95,15.31]
[1720811458734,15.31,140.0,139.95,15.31]
[1720811460131,6.5339,140.06,139.94,6.6307]
[1720811460343,15.31,140.03,139.98,15.31]
[1720811460927,16.46523728,140.06,139.99,15.31]
[1720811461251,15.31,140.05,139.99,15.31]
[1720811462047,9.32533728,140.06,140.0,15.31]
[1720811462251,15.31,140.05,140.01,1.42829373]
[1720811462454,15.31,140.05,140.0,15.31]
[1720811464557,15.31,140.05,139.99,15.31]
[1720811464932,6.5339,140.06,139.97,16.2791]
[1720811465134,23.5186,140.07,140.01,15.31]
[1720811465339,15.31,140.06,140.02,0.62704149]
[1720811466136,22.4498,140.06,140.01,15.31]
[1720811466341,15.31,140.03,139.98,3.18982445]
[1720811467252,15.31,140.03,139.98,18.49982445]
[1720811468458,15.31,140.01,139.98,3.18982445]
[1720811469042,15.31,140.02,139.98,3.18982445]
[1720811469643,15.31,140.03,139.98,18.49982445]
[1720811469838,13.2805,140.05,139.98,18.49982445]
[1720811469839,6.1402,140.05,139.98,18.49982445]
[1720811470166,15.31,140.03,139.98,18.49982445]
[1720811471265,7.1399,140.06,139.99,15.31]
[1720811471443,15.31,140.05,139.99,15.31]
[1720811471845,15.31,140.05,140.0,15.31]
[1720811472056,15.31,140.04,139.99,15.31]
[1720811473250,15.31,140.04,139.98,3.18982445]
[1720811473251,15.31,140.0,139.98,3.18982445]
[1720811473456,15.31,139.99,139.98,3.18982445]
[1720811473657,15.31,140.0,139.98,3.18982445]
[1720811474037,15.31,139.99,139.98,3.18982445]
[1720811474242,15.31,140.0,139.98,3.18982445]
[1720811474655,6.1517,140.03,139.97,15.31]
[1720811474854,15.31,140.02,139.97,15.31]
[1720811475243,6.1517,140.03,139.97,15.31]
[1720811475648,15.31,140.01,139.93,16.2921]
[1720811475960,15.31,140.01,139.96,15.31]
[1720811478268,6.1517,140.03,139.96,15.31]
[1720811478447,15.31,140.01,139.96,18.50028027]
[1720811478849,15.31,139.99,139.96,3.19028027]
[1720811479062,15.31,139.98,139.93,31.6021]
[1720811479253,15.31,139.97,139.91,6.6591]
[1720811479463,15.31,139.96,139.91,15.31]
[1720811480168,15.31,139.96,139.9,17.74990826]
[1720811480471,15.31,139.96,139.91,15.31]
[1720811480866,15.31,139.96,139.9,33.05990826]
[1720811481865,15.31,139.94,139.9,1.26620826]
[1720811482854,15.31,139.93,139.9,1.26620826]
[1720811483850,22.9482,139.97,139.9,1.26620826]
[1720811484055,15.31,139.95,139.9,16.57620826]
[1720811484572,15.31,139.96,139.9,16.57620826]
[1720811486067,15.31,139.95,139.9,16.57620826]
[1720811486279,15.31,139.94,139.9,1.26620826]
[1720811487163,15.31,139.91,139.9,1.26620826]
[1720811487478,7.1451,139.96,139.9,1.26620826]
[1720811487863,15.31,139.94,139.9,1.26620826]
[1720811488067,15.31,139.93,139.9,1.26620826]
[1720811488757,15.31,139.94,139.9,1.26620826]
[1720811489158,15.31,139.93,139.9,1.26620826]
[1720811489989,15.31,139.92,139.9,1.26620826]
[1720811491887,30.0927,139.97,139.9,1.26620826]
[1720811492101,15.31,139.94,139.9,1.26620826]
[1720811492563,15.31,139.93,139.9,1.26620826]
[1720811492762,15.31,139.92,139.9,1.26620826]
[1720811495673,15.31,139.93,139.9,1.26620826]
[1720811496561,22.9482,139.97,139.9,1.26620826]
[1720811496766,15.31,139.95,139.9,16.57620826]
[1720811497588,15.31,139.95,139.91,1.42927266]
[1720811498081,13.6916,139.97,139.9,16.42741776]
[1720811498287,15.31,139.96,139.91,15.31]
[1720811498799,15.31,139.95,139.9,16.42741776]
[1720811498991,15.31,139.95,139.9,1.11741776]
[1720811500593,15.31,139.94,139.9,1.11741776]
[1720811500772,15.31,139.93,139.9,1.11741776]
[1720811504288,15.31,139.95,139.9,1.11741776]
[1720811504666,15.31,139.95,139.9,16.42741776]
[1720811504872,15.31,139.96,139.9,32.97431776]
[1720811505094,15.31,139.97,139.91,15.31]
[1720811506170,13.6989,140.0,139.91,15.31]
[1720811506371,15.31,139.98,139.93,15.31]
[1720811506589,15.31,139.98,139.94,1.42895831]
[1720811507373,15.31,139.97,139.92,15.31]
[1720811507690,22.4544,139.97,139.91,15.31]
[1720811507888,15.31,139.97,139.91,15.31]
[1720811509703,15.31,139.96,139.91,15.31]
[1720811512306,15.31,139.95,139.9,32.97431776]
[1720811512477,15.31,139.94,139.9,17.66431776]
[1720811513710,15.31,139.93,139.9,1.11741776]
[1720811514071,15.31,139.92,139.9,1.11741776]
[1720811514273,15.31,139.91,139.9,1.11741776]
[1720811514482,15.31,139.92,139.9,1.11741776]
[1720811516097,15.31,139.91,139.9,1.11741776]
[1720811523611,13.468,139.94,139.9,1.11741776]
[1720811523612,15.31,139.92,139.9,1.11741776]
[1720811524101,15.31,139.93,139.9,1.11741776]
[1720811525207,15.31,139.92,139.9,1.11741776]
[1720811525412,15.31,139.91,139.9,1.11741776]
[1720811528121,67.4574,139.91,139.9,1.11741776]
[1720811528612,60.31,139.91,139.9,1.11741776]
[1720811532692,67.4574,139.91,139.9,1.11741776]
[1720811536704,7.1496,139.87,139.8,15.2832]
[1720811536905,15.31,139.85,139.8,30.5932]
[1720811538407,7.1491,139.88,139.8,30.5932]
[1720811538608,15.31,139.86,139.8,30.5932]
[1720811538814,15.31,139.86,139.81,15.31]
[1720811539299,79.4883,139.91,139.81,15.31]
[1720811539510,15.31,139.86,139.81,15.31]
[1720811539920,15.31,139.86,139.8,15.2832]
[1720811539921,15.31,139.85,139.8,15.2832]
[1720811543001,15.31,139.85,139.8,30.5932]
[1720811543422,15.31,139.85,139.8,15.2832]
[1720811546708,15.31,139.83,139.8,15.2832]
[1720811547929,15.31,139.84,139.8,15.2832]
[1720811548421,15.31,139.83,139.8,15.2832]
[1720811549015,7.15,139.86,139.8,15.2832]
[1720811549216,13.3584,139.87,139.8,15.2832]
[1720811549415,15.31,139.84,139.8,15.2832]
[1720811549622,6.2087,139.87,139.8,15.2832]
[1720811549821,7.1486,139.89,139.81,16.74023677]
[1720811550022,15.31,139.87,139.81,16.74023677]
[1720811550629,41.1156,139.91,139.8,15.2832]
[1720811550818,15.31,139.85,139.8,30.5932]
[1720811552550,15.31,139.84,139.8,15.2832]
[1720811553333,15.31,139.82,139.77,16.03419412]
[1720811553639,15.31,139.81,139.77,16.03419412]
[1720811555416,7.1508,139.85,139.78,15.9918]
[1720811555609,45.0,139.84,139.78,31.3018]
[1720811555808,45.0,139.84,139.79,15.31]
[1720811556029,60.31,139.85,139.79,15.31]
[1720811556339,15.31,139.84,139.79,15.31]
[1720811557040,15.31,139.82,139.78,15.9918]
[1720811557226,15.31,139.82,139.77,0.04239412]
[1720811557717,7.151,139.84,139.78,15.31]
[1720811557913,15.31,139.83,139.77,0.04239412]
[1720811558114,15.31,139.83,139.78,15.31]
[1720811558314,15.31,139.82,139.77,15.35239412]
[1720811558733,15.31,139.83,139.77,15.35239412]
[1720811559343,15.31,139.84,139.79,15.31]
[1720811559839,15.31,139.85,139.8,15.31]
[1720811560042,21.3928,139.9,139.83,15.31]
[1720811560251,15.31,139.89,139.83,15.31]
[1720811560419,7.1475,139.91,139.85,15.31]
[1720811560744,22.4575,139.91,139.85,15.31]
[1720811560924,15.31,139.9,139.85,15.31]
[1720811561519,7.1475,139.91,139.77,60.04239412]
[1720811561520,15.31,139.86,139.79,15.6868]
[1720811561722,15.31,139.85,139.79,30.9968]
[1720811562021,15.31,139.85,139.8,15.31]
[1720811562239,15.31,139.86,139.81,15.31]
[1720811562437,15.31,139.85,139.8,15.31]
[1720811562830,22.46,139.86,139.79,15.6868]
[1720811563027,22.46,139.86,139.81,15.31]
[1720811563228,15.31,139.85,139.8,15.31]
[1720811563425,15.31,139.84,139.79,30.9968]
[1720811563643,22.461,139.84,139.79,30.9968]
[1720811564243,15.31,139.84,139.79,30.9968]
[1720811564746,7.1506,139.85,139.79,15.6868]
[1720811567342,7.15,139.86,139.79,15.6868]
[1720811567538,45.0,139.85,139.79,15.6868]
[1720811567926,52.15,139.86,139.79,15.6868]
[1720811568228,7.1506,139.85,139.79,15.6868]
[1720811570257,45.0,139.86,139.79,15.6868]
[1720811570947,7.1506,139.85,139.79,15.6868]
[1720811571426,15.3788,139.85,139.77,0.04239412]
[1720811571619,45.0,139.84,139.77,0.04239412]
[1720811571831,7.1519,139.83,139.77,0.04239412]
[1720811572134,45.0,139.82,139.77,0.04239412]
[1720811573825,52.1521,139.82,139.77,0.04239412]
[1720811574025,30.0,139.81,139.77,0.04239412]
[1720811574635,52.1521,139.82,139.77,0.04239412]
[1720811575030,15.3788,139.85,139.77,0.04239412]
[1720811575235,7.1513,139.84,139.77,0.04239412]
[1720811576128,22.5294,139.85,139.77,0.04239412]
[1720811576537,7.1506,139.85,139.77,0.04239412]
[1720811576930,7.1511,139.84,139.77,0.04239412]
[1720811577847,7.1515,139.83,139.77,0.04239412]
[1720811579135,52.152,139.82,139.77,0.04239412]
[1720811579748,7.1527,139.81,139.77,0.04239412]
[1720811580454,7.1532,139.8,139.77,0.04239412]
[1720811580942,7.1537,139.79,139.77,0.04239412]
[1720811581132,7.153,139.81,139.77,0.04239412]
[1720811581331,7.1531,139.8,139.77,0.04239412]
[1720811581645,7.1527,139.81,139.77,0.04239412]
[1720811581856,45.0,139.8,139.77,0.04239412]
[1720811582231,52.1531,139.8,139.77,0.04239412]
[1720811583254,45.0,139.8,139.77,0.04239412]
[1720811584438,7.1521,139.82,139.77,0.04239412]
[1720811584640,52.1527,139.81,139.77,0.04239412]
[1720811585341,45.0,139.81,139.77,0.04239412]
[1720811585854,52.1526,139.81,139.77,0.04239412]
[1720811586239,7.1534,139.8,139.77,0.04239412]
[1720811587264,7.1535,139.79,139.77,0.04239412]
[1720811587759,7.154,139.78,139.77,0.04239412]
[1720811587949,7.1537,139.79,139.77,0.04239412]
[1720811588148,45.0,139.81,139.77,0.04239412]
[1720811588347,7.1521,139.82,139.77,0.04239412]
[1720811588664,7.1522,139.82,139.77,0.04239412]
[1720811589843,7.1515,139.83,139.77,0.04239412]
[1720811590040,47.4433,139.86,139.77,0.04239412]
[1720811590041,7.1512,139.84,139.77,0.04239412]
[1720811590244,45.0,139.83,139.77,1.39163215]
[1720811590445,7.1512,139.84,139.77,0.04239412]
[1720811590863,7.1516,139.83,139.77,0.04239412]
[1720811591167,7.152,139.82,139.77,0.04239412]
[1720811591349,75.3183,139.86,139.77,0.04239412]
[1720811591549,7.1522,139.82,139.77,0.04239412]
[1720811592760,7.1517,139.83,139.77,0.04239412]
[1720811592955,52.152,139.82,139.77,0.04239412]
[1720811593149,65.3183,139.86,139.77,0.04239412]
[1720811593340,7.1513,139.84,139.77,0.04239412]
[1720811593545,11.89640161,139.87,139.77,0.04239412]
[1720811593747,7.15,139.86,139.77,0.04239412]
[1720811594270,7.1505,139.85,139.77,0.04239412]
[1720811595257,7.151,139.84,139.77,0.04239412]
[1720811595665,29.77030161,139.87,139.77,0.04239412]
[1720811595852,7.1517,139.83,139.77,0.04239412]
[1720811598569,45.0,139.86,139.77,0.04239412]
[1720811599466,7.1506,139.85,139.77,0.04239412]
[1720811599652,52.1502,139.86,139.77,0.04239412]
[1720811600947,45.0,139.86,139.78,16.4647]
[1720811601579,15.7052,139.9,139.79,6.4542]
[1720811601770,7.1481,139.9,139.8,17.89481332]
[1720811602085,6.4561,139.91,139.8,16.4647]
[1720811602086,7.1484,139.89,139.8,16.4647]
[1720811602252,7.1481,139.9,139.81,1.4301103]
[1720811602447,7.1481,139.9,139.8,16.4647]
[1720811602671,7.1484,139.89,139.81,1.4300972]
[1720811603175,6.4561,139.91,139.8,16.4647]
[1720811603176,7.1477,139.91,139.8,16.4647]
[1720811603380,7.1477,139.91,139.82,16.4647]
[1720811603573,7.1477,139.91,139.83,1.42995891]
[1720811603780,7.148,139.9,139.83,1.42995891]
[1720811604087,7.148,139.9,139.82,16.4647]
[1720811604370,7.1485,139.89,139.82,16.4647]
[1720811605879,7.149,139.88,139.82,16.4647]
[1720811606267,7.1486,139.89,139.82,16.4647]
[1720811606460,7.1481,139.9,139.82,16.4647]
[1720811607276,7.1476,139.91,139.82,16.4647]
[1720811607663,39.50593304,139.93,139.82,16.4647]
[1720811607664,7.1482,139.9,139.82,16.4647]
[1720811608691,7.1485,139.89,139.82,16.4647]
[1720811608859,52.149,139.88,139.82,16.4647]
[1720811609263,51.4465,139.88,139.79,9.64836001]
[1720811609560,45.0,139.88,139.79,9.64836001]
[1720811609776,52.1486,139.89,139.79,9.64836001]
[1720811610578,7.149,139.88,139.79,9.64836001]
[1720811612780,52.1496,139.87,139.79,9.64836001]
[1720811612980,45.0,139.89,139.79,9.64836001]
[1720811613378,7.1497,139.87,139.79,9.64836001]
[1720811615088,7.1491,139.88,139.79,9.64836001]
[1720811615300,45.0,139.87,139.79,9.64836001]
[1720811616291,7.1486,139.89,139.79,9.64836001]
[1720811616783,45.0,139.88,139.79,9.64836001]